Cogmind - Beta 16 @@@ ROGUE MODE // 2026.02.04 @ 14:19:10 Player: Darkfire Result: Destroyed by Y-45 Defender with Heavy Assault Rifle Performance ------------- Evolutions (2) 1000 Regions Visited (5) 1000 Robots Destroyed (77) 385 Value Destroyed (2166) 2166 Prototype IDs (10) 200 Alien Tech Used (0) 0 Bonus (37) 37 TOTAL SCORE: 4788 Bonus ------- Follower Combat Kills 37 Cogmind --------- Core Integrity 0/550 Matter 290/300 Energy 85/100 System Corruption 7% Temperature Cool (9) Movement Treading (160) Location -8/Storage Parts ------- > --- POWER (2) -------- (None) > --- PROPULSION (4) --- Light Treads > --- UTILITY (3) ------ Improved Signal Interpreter System Shield > --- WEAPON (2) ------- Heavy Mace > --- INVENTORY (5) ---- Cooled Ion Engine Advanced Heat Sink Precision Beam Rifle Precision Beam Rifle Improved EM Pulse Cannon Peak State ------------ > --- POWER ------------ Light Nuclear Core Light Nuclear Core > --- PROPULSION ------- Improved Hover Unit Aerolev Unit Aerolev Unit Aerolev Unit > --- UTILITY ---------- Improved Heat Sink Compact Battery Improved Signal Interpreter > --- WEAPON ----------- Improved EM Pulse Cannon Improved EM Pulse Cannon > --- INVENTORY -------- Light Deuterium Engine Improved Hover Unit System Shield Heavy EM Pulse Gun Improved Grenade Launcher [Rating: 38] Favorites ----------- Power Light Nuclear Core Engine Ion Engine Power Core Light Nuclear Core Propulsion Aerolev Unit Treads Light Treads Leg Aluminum Leg Wheel Compact Wheel Hover Unit Aerolev Unit Flight Unit Flight Unit Utility Signal Interpreter Device Seismic Detector Storage Small Storage Unit Processor Signal Interpreter Hackware System Shield Weapon Improved EM Pulse Cannon Energy Gun Precision Beam Rifle Energy Cannon Improved EM Pulse Cannon Ballistic Gun Assault Rifle Launcher Rocket Launcher Impact Weapon Heavy Mace Build | -11 -10 -10 -10 -8 -8 ------- Run | Yrd Mat Min Sub Mat Sto Slots Evolved 4 | . . . . 4 . Power 1 | . . . . 1 . Propulsion 2 | . . . . 2 . Utility 1 | . . . . 1 . Weapon . | . . . . . . Parts Attached 65 | 8 5 2 1 34 15 Power 12 | 1 1 1 . 4 5 Engine 9 | 1 1 . . 2 5 Core 3 | . . 1 . 2 . Reactor . | . . . . . . Propulsion 18 | 4 1 . . 12 1 Treads 4 | 2 1 . . . 1 Leg 2 | . . . . 2 . Wheel 3 | 2 . . . 1 . Hover 6 | . . . . 6 . Flight 3 | . . . . 3 . Utility 13 | 1 1 . 1 9 1 Device 6 | . . . 1 5 . Storage 4 | 1 . . . 2 1 Processor 2 | . 1 . . 1 . Hackware 1 | . . . . 1 . Protection . | . . . . . . Artifact . | . . . . . . Weapon 22 | 2 2 1 . 9 8 Energy Gun 7 | . . . . 3 4 Energy Cannon 6 | . . . . 4 2 Ballistic Gun 5 | 2 2 . . 1 . Ballistic Cannon . | . . . . . . Launcher 3 | . . 1 . 1 1 Special Weapon . | . . . . . . Impact Weapon 1 | . . . . . 1 Slashing Weapon . | . . . . . . Piercing Weapon . | . . . . . . Special Melee Weapon . | . . . . . . Unidentified Prototypes 10 | . . . 1 2 7 Corrupted Parts 1 | . . . . . 1 System Corruption 5 | . . . . . 5 Parts Lost 21 | . . 2 3 7 9 Power 6 | . . . . 2 4 Propulsion 10 | . . 1 2 3 4 Utility 1 | . . . . 1 . Weapon 4 | . . 1 1 1 1 Highest Loss Streak 4 | . . 2 2 4 3 To Critical Strikes . | . . . . . . Average Backups 5 | 2 5 7 7 4 5 Power . | . . . . . . Propulsion 1 | 1 2 4 3 1 . Utility 1 | . . 1 2 . 2 Weapon 1 | . 1 1 1 1 2 Tool/Special . | . . . . . . Unused Backups 9 | . 2 1 . 1 5 Power 2 | . 1 . . . 1 Propulsion 1 | . . . . 1 . Utility 4 | . . 1 . . 3 Weapon 2 | . 1 . . . 1 Tool/Special . | . . . . . . Average Slot Usage (%) 89 | . 97 88 76 88 89 Engine 5 | . 14 . . 1 5 Core 9 | . . 13 14 13 10 Treads 10 | . 28 16 17 . . Hover 15 | . . . . 27 30 Device 2 | . . . 4 11 . Storage 9 | . 14 14 9 4 7 Processor 10 | . 11 14 14 9 9 Hackware 3 | . . . . 1 9 Energy Gun 1 | . . . . 2 1 Energy Cannon 6 | . . . . 10 14 Ballistic Gun 9 | . 28 16 2 . . Launcher 3 | . . 10 14 1 . Peak Build Rating 38 | 6 8 10 17 38 38 Average Rating 20 | 4 7 9 11 29 33 On Entrance 12 | . 6 7 10 15 38 Avg Prop Armor Cover (%) 5 | . . . . 5 . Naked Turns . | . . . . . . Heaviest Build 35 | 13 14 16 16 30 35 Greatest Support 40 | 40 40 40 40 37 31 Greatest Overweight (x) 3 | . . . 3 1 2 Average Overweight (x) . | . . . . . . Largest Inventory Capacity 15 | 8 8 8 8 15 8 Average Capacity 6 | 6 8 8 7 6 5 Most Carried 8 | 4 8 8 8 5 8 Average Carried 5 | 2 5 7 7 4 5 Final Capacity 8 | 8 8 8 5 5 5 Final Carried 8 | 4 7 8 5 5 5 Class Distribution -------------------- 98% | Mutant Dominant Class ---------------- Mutant | -10/Materials Mutant | -10/Mines Mutant | -10/Subcaves Mutant | -8/Materials Mutant | -8/Storage Resources | -11 -10 -10 -10 -8 -8 ----------- Run | Yrd Mat Min Sub Mat Sto Matter Collected 1499 | 175 381 82 33 488 340 Remotely . | . . . . . . Salvage Created 3114 | . 496 182 . 1270 1166 Parts 161 | . 25 18 . 68 50 Haulers Intercepted 7 | . 1 . . 2 4 Recyclers Shooed 1 | . . . . . 1 Parts Field Recycled . | . . . . . . Retrieved Matter . | . . . . . . Parts Self-Destructed 4 | . . . 4 . . Prevented . | . . . . . . Parts Restored . | . . . . . . Kills | -11 -10 -10 -10 -8 -8 ------- Run | Yrd Mat Min Sub Mat Sto Combat Hostiles Destroyed 54 | . 7 8 . 23 16 Guns 21 | . 7 6 . 6 2 Cannons 22 | . . . . 11 11 AOE 5 | . . 2 . 2 1 Classes Destroyed 10 | . 6 . . 3 1 Worker 3 | . 2 . . 1 . Builder 1 | . . . . 1 . Hauler 7 | . 1 . . 2 4 Recycler 2 | . 1 . . . 1 Operator 1 | . . . . . 1 Watcher 9 | . 3 . . 5 1 Swarmer 17 | . 1 6 . 7 3 Grunt 22 | . 6 2 . 7 7 Duelist 2 | . . . . 2 . Sentry 13 | . . . . 7 6 Best Kill Streak 7 | . 3 3 . 7 3 Combat Bots Only 7 | . 2 3 . 7 3 Max Kills in Single Turn 2 | . 1 2 . 2 1 Gunslinging 1 | . . 1 . . . Exploded 2 | . . 2 . 2 1 Melee . | . . . . . . Uniques/NPCs Destroyed . | . . . . . . Combat | -11 -10 -10 -10 -8 -8 -------- Run | Yrd Mat Min Sub Mat Sto Hostile Shots Fired 275 | . 48 49 13 89 76 Missed 73 | . 9 12 6 26 20 Hits 202 | . 39 37 7 63 56 Melee 6 | . . . . 6 . Projectile 196 | . 39 37 7 57 56 AOE 1 | . . . . . 1 Critical Strikes 7 | . 1 . . 5 1 Damage Taken 2881 | . 476 349 185 960 911 Core 706 | . 65 51 38 302 250 Absorbed by Shields . | . . . . . . Regen/Repaired (Parts) 101 | . . . . 44 57 Core Remaining (%) 69 | 100 . . 38 . . Volleys Fired 184 | . 48 14 . 66 56 Largest 2 | . 2 2 . 2 2 Hottest 138 | . 40 53 . 138 138 Shots Fired 323 | . 96 28 . 96 103 Gun 181 | . 96 26 . 31 28 Cannon 137 | . . . . 62 75 Launcher 5 | . . 2 . 3 . Special . | . . . . . . Kinetic 140 | . 96 26 . 18 . Thermal 37 | . . . . 9 28 Explosive 5 | . . 2 . 3 . Electromagnetic 141 | . . . . 66 75 Robot Hit Streak 22 | . 14 8 . 12 22 Robot Miss Streak 5 | . 5 2 . 2 4 Penetration Max . | . . . . . . Secondary Targets 3 | . 1 2 . . . Max Gunslinging Chain 1 | . 1 1 . . . Shots Hit Robots 210 | . 59 20 . 67 64 Core Hits 98 | . 27 11 . 36 24 Critical Kills 1 | . 1 . . . . Critical Parts Destroyed 1 | . . . . 1 . Critical Strikes 6 | . 1 . . 2 3 Burn 3 | . . . . 1 2 Destroy 2 | . 1 . . 1 . Corrupt 1 | . . . . . 1 Melee Attacks 5 | . . . . . 5 Impact 5 | . . . . . 5 Slashing . | . . . . . . Piercing . | . . . . . . Sneak Attacks . | . . . . . . Combat Hostiles . | . . . . . . Follow-up Attacks . | . . . . . . Damage Inflicted 4757 | . 676 352 . 1905 1824 Guns 1547 | . 675 261 . 250 361 Cannons 2475 | . . . . 1378 1097 Explosions 379 | . . 91 . 239 49 Melee 264 | . . . . . 264 Ramming 92 | . 1 . . 38 53 Kinetic 1074 | . 675 261 . 138 . Thermal 498 | . . . . 88 410 Explosive 330 | . . 91 . 239 . Electromagnetic 2499 | . . . . 1402 1097 Impact 264 | . . . . . 264 Slashing . | . . . . . . Piercing . | . . . . . . Highest Corruption 7 | . . . . 2 7 Average Corruption 2 | . . . . 2 2 Corruption Purged . | . . . . . . Corruption Blocked . | . . . . . . Effects 24 | . . . . 3 21 Message Errors 10 | . . . . 3 7 Matter Fused 5 | . . . . . 5 Heat Flow Errors 1 | . . . . . 1 Energy Discharges 4 | . . . . . 4 Parts Fused 1 | . . . . . 1 Data Loss (minor) 1 | . . . . . 1 Data Loss (major) 1 | . . . . . 1 Weapon Failures 1 | . . . . . 1 Overload Shots . | . . . . . . Overflow Damage 190 | . . . . 44 146 Projectiles 87 | . . . . 20 67 Explosions 33 | . . . . 24 9 Melee 70 | . . . . . 70 Knockbacks 1 | . . . . . 1 Impact 1 | . . . . . 1 Kinetic . | . . . . . . Secondary . | . . . . . . Self-Inflicted Damage 206 | . . 32 . 117 57 Shots 4 | . . 1 . 2 1 Rammed 9 | . 1 . . 3 5 Targets Rammed 9 | . 1 . . 3 5 Kicked . | . . . . . . Crushed . | . . . . . . Highest Temperature 425 | . 12 8 . 425 347 Average Temperature 124 | . 5 6 . 127 130 Received Heat Transfer 816 | . 255 54 12 243 252 Effects 6 | . . . . 3 3 Energy Bleed 2 | . . . . . 2 Interference 2 | . . . . 2 . Damage (minor) 2 | . . . . 1 1 Siege Activations . | . . . . . . Martial Activations . | . . . . . . Shielding Activations . | . . . . . . Robots Disrupted . | . . . . . . Combat Hostiles . | . . . . . . Robots Corrupted 7 | . . . . 4 3 Combat Hostiles 6 | . . . . 4 2 Parts Fried 13 | . . . . 9 4 Impact Corruptions 4 | . . . . . 4 Robots Melted . | . . . . . . Combat Hostiles . | . . . . . . Parts Melted 2 | . . . . . 2 Heat Transferred 1271 | . . . . 296 975 Parts Sabotaged . | . . . . . . Parts Stolen . | . . . . . . Parts Stripped . | . . . . . . Power Chain Reactions 1 | . . . . . 1 Alert | -11 -10 -10 -10 -8 -8 ------- Run | Yrd Mat Min Sub Mat Sto Maximum Alert Level 1 | . . . . 1 1 Low Security (%) 87 | 100 100 100 . 70 84 Level 1 12 | . . . . 29 15 Level 2 . | . . . . . . Level 3 . | . . . . . . Level 4 . | . . . . . . Level 5 . | . . . . . . High Security . | . . . . . . Max Security . | . . . . . . Peak Influence 309 | . 52 116 . 281 309 Initial 69 | . . 14 . . 69 Average 77 | . 10 31 . 170 85 Influence Increases 1971 | . 263 222 . 789 697 Destroy 0b10 Robot/C 1100 | . 140 160 . 460 340 Destroy 0b10 Robot/NC 115 | . 35 . . 45 35 Destroy Leader 322 | . 48 30 . 134 110 Allied During Kill 7 | . . . . . 7 Successful Hack 57 | . 10 . . 33 14 Disable Machine 150 | . . 15 . 45 90 Destroy Structure 55 | . . 17 . 27 11 Partial Spotted 75 | . . . . 15 60 Lose Combat Pursuer 90 | . 30 . . 30 30 Influence Decreases 1668 | . 225 260 . 624 559 Entered New Map 120 | . . 24 . . 96 Time Decay 1198 | . 225 216 . 424 333 Lost Part 160 | . . 20 . 50 90 Lost Ally 40 | . . . . . 40 Purge Threat 150 | . . . . 150 . Squads Dispatched 8 | . 2 . . 2 4 Investigation 2 | . . . . 1 1 Extermination . | . . . . . . Reinforcement 4 | . 2 . . 1 1 Assault 2 | . . . . . 2 Garrison . | . . . . . . Intercept . | . . . . . . Searches Triggered . | . . . . . . Construction Impeded 1 | . . . . 1 . Haulers Reinforced . | . . . . . . Active Scanning Responses . | . . . . . . Cargo Convoy Interrupts . | . . . . . . Stealth | -11 -10 -10 -10 -8 -8 --------- Run | Yrd Mat Min Sub Mat Sto Distress Signals 4 | . 1 . . 1 2 Communications Jammed . | . . . . . . Distress Signals . | . . . . . . Times Spotted 91 | . 21 8 2 33 27 Peak Tracking Total 8 | . 3 3 2 8 5 Tactical Retreats 5 | . 1 . . 2 2 Traps | -11 -10 -10 -10 -8 -8 ------- Run | Yrd Mat Min Sub Mat Sto Traps Triggered 2 | . . . 1 1 . Indirectly . | . . . . . . Trap Hack Attempts . | . . . . . . Triggered . | . . . . . . Disarmed . | . . . . . . Reprogrammed . | . . . . . . Reused . | . . . . . . Traps Extracted . | . . . . . . Installed . | . . . . . . Triggered . | . . . . . . Machines | -11 -10 -10 -10 -8 -8 ---------- Run | Yrd Mat Min Sub Mat Sto Machines Disabled 10 | . . 1 . 3 6 Max in Single Turn 2 | . . 1 . 2 1 Machines Repaired . | . . . . . . Machines Dismantled . | . . . . . . Machines Sabotaged . | . . . . . . Overloaded Fab Kills . | . . . . . . Hacking | -11 -10 -10 -10 -8 -8 --------- Run | Yrd Mat Min Sub Mat Sto Machines Accessed 20 | . 3 . . 10 7 Terminals 12 | . 2 . . 6 4 Fabricators . | . . . . . . Repair Stations 2 | . . . . 1 1 Recycling Units 3 | . 1 . . 1 1 Scanalyzers 2 | . . . . 2 . Garrison Access 1 | . . . . . 1 Total Hacks 63 | . 8 . . 31 24 Successful 29 | . 5 . . 15 9 Failed 34 | . 3 . . 16 15 Catastrophic 4 | . . . . 2 2 Database Lockouts . | . . . . . . Manual 15 | . 2 . . 6 7 Terminals 40 | . 7 . . 18 15 Fabricators . | . . . . . . Repair Stations 11 | . . . . 7 4 Recycling Units 6 | . 1 . . 1 4 Scanalyzers 5 | . . . . 5 . Garrison Access 1 | . . . . . 1 Terminal Hacks 11 | . 2 . . 5 4 Record 1 | . . . . 1 . Robot Analysis 1 | . . . . . 1 Open Door 1 | . . . . . 1 Alert Level 1 | . . . . 1 . Unreport Threat 1 | . . . . 1 . Locate Traps 3 | . 1 . . . 2 Dispatch Records 1 | . . . . 1 . Maintenance Status 1 | . 1 . . . . Zone Layout 1 | . . . . 1 . Fabricator Hacks . | . . . . . . Repair Station Hacks 8 | . . . . 6 2 Scan Component 4 | . . . . 3 1 Repair 4 | . . . . 3 1 Recycling Unit Hacks 4 | . 1 . . 1 2 Report Inventory 3 | . 1 . . 1 1 Retrieve Components 1 | . . . . . 1 Scanalyzer 2 | . . . . 2 . Insert Component 1 | . . . . 1 . Analyze 1 | . . . . 1 . Garrison Access Hacks 1 | . . . . . 1 Unlock Access 1 | . . . . . 1 Unauthorized Hacks 3 | . 2 . . 1 . Terminals 3 | . 2 . . 1 . Assimilate 3 | . 2 . . 1 . Fabricators . | . . . . . . Repair Stations . | . . . . . . Recycling Units . | . . . . . . Scanalyzers . | . . . . . . Garrison Access . | . . . . . . Data Cores Recovered . | . . . . . . Used . | . . . . . . Hacking Detections 13 | . 1 . . 9 3 Full Trace Events 2 | . . . . 1 1 Feedback Events . | . . . . . . Feedback Blocked . | . . . . . . Robot Schematics Acquired . | . . . . . . Robots Built . | . . . . . . Authchips . | . . . . . . Time . | . . . . . . Total Robot Build Rating . | . . . . . . Part Schematics Acquired 1 | . . . . 1 . Parts Built . | . . . . . . Authchips . | . . . . . . Time . | . . . . . . Total Part Build Rating . | . . . . . . Part Studies Acquired . | . . . . . . Parts Repaired 4 | . . . . 3 1 Time 206 | . . . . 146 60 Parts Recycled . | . . . . . . Recycled Matter . | . . . . . . Retrieved Matter . | . . . . . . Retrieved Components 4 | . . . . . 4 Parts Scanalyzed 1 | . . . . 1 . Part Schematics Acquired 1 | . . . . 1 . Parts Damaged . | . . . . . . Bothacking | -11 -10 -10 -10 -8 -8 ------------ Run | Yrd Mat Min Sub Mat Sto Used RIF Installer . | . . . . . . Robots Hacked . | . . . . . . Non-combat . | . . . . . . Combat . | . . . . . . Robot Hacks Applied . | . . . . . . Relay Couplers Released . | . . . . . . Fabnet Peak Effective % . | . . . . . . Robots Rewired . | . . . . . . Allies Hacked . | . . . . . . Hacks Repelled . | . . . . . . Allies | -11 -10 -10 -10 -8 -8 -------- Run | Yrd Mat Min Sub Mat Sto Total Allies 2 | . . . . . 2 Largest Group 2 | . . . . . 2 Highest-Rated Group 62 | . . . . . 62 Highest-Rated Ally 31 | . . . . . 31 Total Orders . | . . . . . . Ally Attacks 24 | . . . . . 24 Total Damage 423 | . . . . . 423 Kills 1 | . . . . . 1 Allies Corrupted . | . . . . . . Allies Melted . | . . . . . . Intel | -11 -10 -10 -10 -8 -8 ------- Run | Yrd Mat Min Sub Mat Sto Active Infowar (turns) 763 | . . . 148 615 . Sensors 235 | . . . 148 87 . Seismic 542 | . . . . 542 . Robot Analysis Total 1 | . . . . . 1 Derelict Logs Recovered 3 | . . 2 1 . . Drone Launches . | . . . . . . Drone Recoveries . | . . . . . . Exploration | -11 -10 -10 -10 -8 -8 ------------- Run | Yrd Mat Min Sub Mat Sto Turns Passed 5243 | 69 1082 893 501 1164 1534 Spaces Moved 3287 | 43 491 529 309 1181 734 Core 90 | 9 . . 6 . 75 Treads 1351 | 28 491 529 303 . . Legs 1 | . . . . 1 . Wheels 100 | 6 . . . 94 . Hover 1658 | . . . . 999 659 Flight 87 | . . . . 87 . Fastest Speed 34 | 50 160 160 160 34 40 Average Speed 93 | 127 160 160 160 45 49 Slowest Speed 200 | 160 160 160 200 130 170 Overloaded Moves . | . . . . . . Propulsion Burnouts . | . . . . . . Robots Hopped . | . . . . . . Potential Cave-ins . | . . . . . . Cave-ins Triggered . | . . . . . . Exploration Rate (%) 49 | 4 50 86 18 64 72 Regions Visited 5 Branch Regions 3 Pre-discovered Areas . | . . . . . . Known Exits Taken 4 | . 1 1 1 1 . Unknown Exits Taken 1 | 1 . . . . . Scrap Searched 1 | . . . 1 . . Spaces Dug . | . . . . . . Terrain Destroyed 59 | . . 19 . 33 7 Melee . | . . . . . . Projectile . | . . . . . . AOE 59 | . . 19 . 33 7 Terrain Rammed . | . . . . . . Walls Destroyed . | . . . . . . Machines Disabled . | . . . . . . Actions | -11 -10 -10 -10 -8 -8 --------- Run | Yrd Mat Min Sub Mat Sto Total 5118 | 54 698 548 312 1714 1792 Wait 1427 | . 141 . . 369 917 Move 3282 | 42 490 528 308 1180 734 Hop . | . . . . . . Pick Up 58 | 2 7 3 . 29 17 Fast Attach 25 | 8 2 . . 9 6 Attach 29 | . . 1 1 18 9 Detach 9 | 2 . . . 3 4 Swap 38 | . 3 1 1 15 18 Drop 52 | . 6 1 2 22 21 Fire 184 | . 48 14 . 66 56 Melee 5 | . . . . . 5 Ram 8 | . . . . 3 5 Kick . | . . . . . . Crush 1 | . 1 . . . . Escape Stasis . | . . . . . . Rewire . | . . . . . . Trap . | . . . . . . Miscellaneous . | . . . . . . Route ------- -11/Scrapyard -10/Materials (discovered 2 exits: *Mat / *Min) -10/Mines -10/Subcaves -8/Materials (discovered 2 exits: *Fac / *Sto) -8/Storage (discovered 1 exit: Gar) History --------- Turn | Location | Event 11 | -11/Scrapyard | Discovered new exit (range 14) 70 | -11/Scrapyard | Entered Materials 176 | -10/Materials | Discovered new exit (range 7) 317 | -10/Materials | Build established: Mutant 430 | -10/Materials | Discovered new exit (range 4) 435 | -10/Materials | Identified exit to Materials 1150 | -10/Materials | Identified exit to Mines 1152 | -10/Materials | Entered Mines 1393 | -10/Mines | Learned Materials stockpile data 1494 | -10/Mines | Found a damaged Exp. Sensor Array with a note attached 1500 | -10/Mines | Found Prototype Device 1612 | -10/Mines | Learned Materials emergency access door positions 1724 | -10/Mines | Discovered new exit (range 9) 1744 | -10/Mines | Identified exit to Subcaves 2045 | -10/Mines | Entered Subcaves 2115 | -10/Subcaves | Core integrity fell below 50% 2291 | -10/Subcaves | Discovered new exit (range 9) 2302 | -10/Subcaves | Identified exit to Materials 2382 | -10/Subcaves | Learned Materials stockpile data 2398 | -10/Subcaves | Identified Exp. Sensor Array 2546 | -10/Subcaves | Entered Materials 2546 | -8/Materials | Evolved 4 slots: Power x1, Propulsion x2, Utility x1 2676 | -8/Materials | Lost 4 parts (1p1n1u1w) 2695 | -8/Materials | Destroyed 7 combat bots 3058 | -8/Materials | Repaired Broken Aerolev Unit 3098 | -8/Materials | Repaired Lgt. Nuclear Core 3131 | -8/Materials | Repaired Imp. Hover Unit 3182 | -8/Materials | Discovered new exit (range 15) 3441 | -8/Materials | Identified exit to Factory 3447 | -8/Materials | Discovered new exit (range 12) 3474 | -8/Materials | Identified exit to Storage 3610 | -8/Materials | Core integrity fell below 50% 3710 | -8/Materials | Entered Storage 3803 | -8/Storage | Identified exit to Garrison 4646 | -8/Storage | Lost 3 parts (2p1w) 4770 | -8/Storage | Met a pair of Derelict thieves 5179 | -8/Storage | Repaired Aerolev Unit 5211 | -8/Storage | Core integrity fell below 20% 5244 | -8/Storage | Destroyed by Y-45 Defender with Heavy Assault Rifle Last Messages --------------- G-47 Trooper destroyed. Repair Station disabled. Backup Plating I tumbles out of repair station. Backup Laser I tumbles out of repair station. Backup Power I tumbles out of repair station. Acquired 27 matter. U-05 Engineer builds a Door. U-05 Engineer builds a Wall. U-05 Engineer builds a Door. U-05 Engineer lays Concrete. U-05 Engineer builds a Wall. U-05 Engineer lays Concrete. R-06 Scavenger collects Prc. Beam Rifle. Destroyed Imp. Hover Unit. W-25 Informer system corrupted by crushing effect. W-25 Informer system terminally corrupted. R-06 Scavenger collects Prc. Beam Rifle. Acquired Corrupted Lgt. Treads. Integrated Corrupted Lgt. Treads (+5). R-06 Scavenger collects Prc. Beam Rifle. Map ----- +----------------------------------------------------+ | ?????????????????????????????????????????????????? | | ?????????????????????????????????????????????????? | | ?????????????????????????????????????????????????? | | ?????????????????????????????????????????????????? | | ??????????????????????? #?????????????????????? | | ???????????########## #?????????????????????? | | ???#####???# *%= " ??????????????????????? | | ???#* *#???# =%= # ??????????????????????????? | | ???#*!*#???# """"% # ???????????????????????????? | | ???# **#???# "=!" +????????????????????????????? | | ???#!!*#???# "!=" #?????????????????????#????### | | ??##"!"#???# "]*" #?????????????????????+ ???#!* | | ??#T #???# "![" #?????????????????????# ???#%= | | ??## #???# "" #?????????????????????# ??#! | | ???###+##### % #?????????????????????# ## | | ?????# !#####+##+##???????????????????## # | | ?????# [% * #?????????????####### | | ?????# !! +???????????? | | ?????# /%/! #???????????? | | ?????# #####+#####???????????? [ | | ####### ### = #?????????????####### %% | | """ # #?# #+#?????????????????###### | | " " # #?# "" "" # #??????????????????????## | | " " # #?# "[]=" # #???????????????????????# | | + #?# "" "" #!########################### | | = # #?# """"" # Y[@] | | # #?# [!]" + % ] | | # #?# """"" # %r* | | ####### #?# # %################## ###### | | ??????# #?########## #????????????????# #????? | | ??????# #??????????# #????????????????# #????? | | ??????# ############ #????????????????# #????? | | ??????# % !%!!]=%% #???????????????##+###### | | ??????# ############ #???????????????# | | ???[ + #??????#"""# #???????????????# | | "" # #??#####"Y"#####???????????????# | | "" ?# #??#^ [!= #???????????????# | | ??# %#??#^ !! #???????????????# | | ???# #?## ^ ^= ######??????????# | | "T????# #?# ! ##[[[#??????????# | | ??????# % #?## ## [#??????????# | | ??????# #??# ##" "#??????????######### | | ??????# #??# =!! #T #???###????????????? | | ??????# #??####+####+#####+######T#+###########? | | ??????# % #????#= [ # #? | | ??????# %#????# # #? | | ??????# #????# #### ######## #### # #? | | ??????# ######+#### #??#####+#### # #? | | ####??# # !/! ## #??# # # #? | | ! #### # !/%/ + #??# # # #? | +----------------------------------------------------+ Best States ------------- Heat Dissipation 45 Energy Generation 32 Energy Capacity 460 Matter Stores 300 Matter Capacity 300 Sight Range 16 Robot Scan Range 20 Terrain Scan Density 10 Additional Mass Support 6 Evasion (%) 63 Recoil Reduction 2 Defensive Hacking 10 Item Schematics ----------------- Hvy. EM Pulse Gun | -8/Materials | Scanalyzed Robot Schematics ------------------ None Fabricated ------------ Nothing Repaired ---------- Aerolev Unit | 83% | -8/Materials | Broken Lgt. Nuclear Core | 68% | -8/Materials Imp. Hover Unit | 57% | -8/Materials Aerolev Unit | 28% | -8/Storage Studied --------- None Alien Tech Used ----------------- None Achievements -------------- None Challenges ------------ None Game ------ Seed MetaMachineComputer Manual? 0 Play Time 01:09:40 Cumulative 10.2 hours Start 2026.02.04 @ 12:50:34 End 2026.02.04 @ 14:19:10 Sessions 1 Manual Loads 0 Difficulty Rogue Special Mode None Game No. 12 Rogue 12 Adventurer 0 Explorer 0 Win Type - Total 0 Types 0/0/0/0/0/0/0/0/0/0 Lore% 8 Gallery% 13 Achievement% 13 Wizard Run 0 Options --------- Layout 1 ASCII 0 Keyboard 0 Movement Mouse Keybinds 0 Fullscreen 2 Font 24/Smallcaps Map View 76x35 Zoom Use 0% Tactical HUD 0 Map Filters NONE Filters NONE Steam 1 RUN: 27e7c1d5-10e1-43a2-9a06-8380c58c72f1